fUST/lending_fUST_20240927
["ID","MTS","AMOUNT","RATE_DAILY","PERIOD"]
[339261029,1727417439959,-500.0,0.00019178,2]
[339261031,1727417439968,-500.0,0.00019178,2]
[339261034,1727417439977,-500.0,0.00019178,2]
[339261036,1727417439987,-500.0,0.00019178,2]
[339261038,1727417439996,-500.0,0.00019178,2]
[339261042,1727417440005,-1000.0,0.00019178,2]
[339261044,1727417440015,-500.0,0.00019178,2]
[339261045,1727417440024,-504.44823372,0.00019178,2]
[339261047,1727417440034,-504.301689,0.00019178,2]
[339261049,1727417440043,-514.66813122,0.00019178,2]
[339261052,1727417440053,-500.0,0.00019178,2]
[339261054,1727417440063,-506.5671775,0.00019178,2]
[339261057,1727417440073,-514.40980193,0.00019178,2]
[339261059,1727417440082,-621.71854752,0.00019178,2]
[339261061,1727417440091,-500.0,0.00019178,2]
[339261063,1727417440101,-500.0,0.00019178,2]
[339261065,1727417440110,-505.53742141,0.00019178,2]
[339261066,1727417440120,-500.0,0.00019178,2]
[339261067,1727417440129,-517.7458574,0.00019178,2]
[339261068,1727417440138,-504.43924134,0.00019178,2]
[339261070,1727417440148,-500.15549867,0.00019178,2]
[339261071,1727417440157,-504.77009013,0.00019178,2]
[339261073,1727417440166,-266.09623341,0.00019178,2]
[339261076,1727417440177,-500.0,0.00019178,2]
[339261077,1727417440186,-504.53655273,0.00019178,2]
[339261078,1727417440196,-500.0,0.00019178,2]
[339261079,1727417440205,-500.0,0.00019178,2]
[339261080,1727417440215,-2131.71,0.00019178,2]
[339261081,1727417440225,-500.5314839,0.00019178,2]
[339261082,1727417440234,-507.21746871,0.00019178,2]
[339261083,1727417440244,-504.11027069,0.00019178,2]
[339261084,1727417440253,-500.0,0.00019178,2]
[339261085,1727417440262,-512.44586229,0.00019178,2]
[339261086,1727417440272,-500.0,0.00019178,2]
[339261087,1727417440281,-500.0,0.00019178,2]
[339261088,1727417440291,-505.47306469,0.00019178,2]
[339261089,1727417440300,-182.67926184,0.00019178,2]
[339261090,1727417440309,-523.45704906,0.00019178,2]
[339261091,1727417440319,-500.0,0.00019178,2]
[339261092,1727417440328,-508.62598827,0.00019178,2]
[339261093,1727417440338,-568.05262198,0.00019178,2]
[339261094,1727417440347,-519.79375099,0.00019178,2]
[339261095,1727417440356,-500.0,0.00019178,2]
[339261096,1727417440365,-500.0,0.00019178,2]
[339261097,1727417440375,-500.0,0.00019178,2]
[339261098,1727417440384,-503.10293949,0.00019178,2]
[339261099,1727417440394,-500.0,0.00019178,2]
[339261100,1727417440405,-510.23012474,0.00019178,2]
[339261102,1727417440415,-502.21952152,0.00019178,2]
[339261103,1727417440424,-500.0,0.00019178,2]
[339261104,1727417440433,-504.87313067,0.00019178,2]
[339261105,1727417440443,-350.64891707,0.00019178,2]
[339261106,1727417440452,-500.0,0.00019178,2]
[339261107,1727417440461,-500.0,0.00019178,2]
[339261108,1727417440471,-500.0,0.00019178,2]
[339261109,1727417440480,-500.0,0.00019178,2]
[339261110,1727417440492,-500.0,0.00019178,2]
[339261111,1727417440501,-510.52814387,0.00019178,2]
[339261112,1727417440511,-591.51753647,0.00019178,2]
[339261113,1727417440520,-502.25459289,0.00019178,2]
[339261114,1727417440530,-506.87517003,0.00019178,2]
[339261115,1727417440540,-501.58246172,0.00019178,2]
[339261116,1727417440549,-500.0,0.00019178,2]
[339261117,1727417440559,-505.35261575,0.00019178,2]
[339261118,1727417440568,-438.24229567,0.00019178,2]
[339261119,1727417440577,-506.47387956,0.00019178,2]
[339261120,1727417440591,-204.64,0.00019178,2]
[339261121,1727417440601,-500.0,0.00019178,2]
[339261122,1727417440610,-500.0,0.00019178,2]
[339261123,1727417440620,-506.26085563,0.00019178,2]
[339261124,1727417440630,-317.78180645,0.00019178,2]
[339261125,1727417440640,-598.94032415,0.00019178,2]
[339261126,1727417440650,-500.0,0.00019178,2]
[339261127,1727417440660,-503.66934172,0.00019178,2]
[339261128,1727417440669,-500.0,0.00019178,2]
[339261129,1727417440678,-503.98325033,0.00019178,2]
[339261130,1727417440687,-505.87965917,0.00019178,2]
[339261131,1727417440696,-501.95348336,0.00019178,2]
[339261132,1727417440707,-501.91466092,0.00019178,2]
[339261133,1727417440717,-502.35887065,0.00019178,2]
[339261134,1727417440727,-500.0,0.00019178,2]
[339261135,1727417440737,-503.39237662,0.00019178,2]
[339261136,1727417440747,-502.41245971,0.00019178,2]
[339261137,1727417440756,-500.0,0.00019178,2]
[339261138,1727417440766,-605.04087207,0.00019178,2]
[339261139,1727417440775,-503.28609664,0.00019178,2]
[339261140,1727417440784,-513.30267835,0.00019178,2]
[339261141,1727417440793,-512.37,0.00019178,2]
[339261142,1727417440803,-1724.24,0.00019178,2]
[339261143,1727417440812,-500.0,0.00019178,2]
[339261144,1727417440821,-510.19242227,0.00019178,2]
[339261145,1727417440831,-505.93780842,0.00019178,2]
[339261146,1727417440848,-505.36571462,0.00019178,2]
[339261147,1727417440858,-500.0,0.00019178,2]
[339261148,1727417440869,-512.31691537,0.00019178,2]
[339261149,1727417440878,-502.42042241,0.00019178,2]
[339261150,1727417440887,-504.49232934,0.00019178,2]
[339261151,1727417440896,-522.10456009,0.00019178,2]
[339261152,1727417440905,-500.0,0.00019178,2]
[339261153,1727417440915,-507.06799995,0.00019178,2]
[339261154,1727417440925,-500.0,0.00019178,2]
[339261155,1727417440935,-500.0,0.00019178,2]
[339261156,1727417440944,-500.0,0.00019178,2]
[339261157,1727417440954,-500.0,0.00019178,2]
[339261158,1727417440963,-511.82620235,0.00019178,2]
[339261159,1727417440972,-500.0,0.00019178,2]
[339261160,1727417440982,-225.28399239,0.00019178,2]
[339261161,1727417440991,-506.59010023,0.00019178,2]
[339261162,1727417441000,-506.21437589,0.00019178,2]
[339261163,1727417441011,-506.75925166,0.00019178,2]
[339261164,1727417441020,-505.99498372,0.00019178,2]
[339261165,1727417441030,-500.0,0.00019178,2]
[339261166,1727417441039,-502.9036482,0.00019178,2]
[339261167,1727417441050,-500.0,0.00019178,2]
[339261168,1727417441060,-500.0,0.00019178,2]
[339261169,1727417441070,-509.43865599,0.00019178,2]
[339261170,1727417441079,-505.93331144,0.00019178,2]
[339261171,1727417441093,-291.00638307,0.00019178,2]
[339261172,1727417441103,-497.67729194,0.00019178,2]
[339261173,1727417441112,-397.52466371,0.00019178,2]
[339261174,1727417441121,-500.0,0.00019178,2]
[339261175,1727417441130,-503.88295241,0.00019178,2]
[339261176,1727417441139,-513.9071736,0.00019178,2]
[339261177,1727417441148,-505.7320297,0.00019178,2]
[339261178,1727417441158,-509.11825541,0.00019178,2]
[339261179,1727417441167,-500.0,0.00019178,2]
[339261180,1727417441177,-523.06538209,0.00019178,2]
[339261181,1727417441186,-325.57776313,0.00019178,2]
[339261182,1727417441196,-500.0,0.00019178,2]
[339261183,1727417441205,-500.0,0.00019178,2]
[339261184,1727417441215,-512.01984652,0.00019178,2]
[339261185,1727417441224,-500.0,0.00019178,2]
[339261186,1727417441233,-509.55219118,0.00019178,2]
[339261187,1727417441244,-484.41885902,0.00019178,2]
[339261188,1727417441255,-3649.69,0.00019178,2]
[339261189,1727417441264,-500.0,0.00019178,2]
[339261190,1727417441274,-510.57907973,0.00019178,2]
[339261191,1727417441283,-193.19890639,0.00019178,2]
[339261192,1727417441293,-509.23544365,0.00019178,2]
[339261193,1727417441302,-554.31378775,0.00019178,2]
[339261194,1727417441312,-505.71985216,0.00019178,2]
[339261195,1727417441322,-392.81129836,0.00019178,2]
[339261196,1727417441331,-500.0,0.00019178,2]
[339261197,1727417441344,-500.0,0.00019178,2]
[339261198,1727417441353,-542.23158736,0.00019178,2]
[339261199,1727417441362,-500.0,0.00019178,2]
[339261200,1727417441371,-510.19479574,0.00019178,2]
[339261201,1727417441380,-500.0,0.00019178,2]
[339261202,1727417441389,-504.59739924,0.00019178,2]
[339261203,1727417441399,-508.78771254,0.00019178,2]
[339261204,1727417441409,-504.3754481,0.00019178,2]
[339261205,1727417441419,-520.02277408,0.00019178,2]
[339261206,1727417441428,-500.0,0.00019178,2]
[339261207,1727417441438,-500.0,0.00019178,2]
[339261208,1727417441448,-500.0,0.00019178,2]
[339261209,1727417441458,-503.00449786,0.00019178,2]
[339261210,1727417441468,-500.0,0.00019178,2]
[339261211,1727417441477,-588.54975964,0.00019178,2]
[339261212,1727417441492,-522.83889569,0.00019178,2]
[339261213,1727417441502,-500.0,0.00019178,2]
[339261214,1727417441512,-512.27629729,0.00019178,2]
[339261215,1727417441521,-300.25769185,0.00019178,2]
[339261216,1727417441532,-636.20905029,0.00019178,2]
[339261217,1727417441541,-531.63434114,0.00019178,2]
[339261218,1727417441551,-532.2860356,0.00019178,2]
[339261219,1727417441560,-513.21772401,0.00019178,2]
[339261220,1727417441570,-504.89945901,0.00019178,2]
[339261221,1727417441580,-262.28491804,0.00019178,2]
[339261222,1727417441592,-516.01800245,0.00019178,2]
[339261223,1727417441602,-505.49420138,0.00019178,2]
[339261224,1727417441612,-544.43647367,0.00019178,2]
[339261225,1727417441622,-507.91041414,0.00019178,2]
[339261226,1727417441632,-511.98867425,0.00019178,2]
[339261227,1727417441642,-504.69552132,0.00019178,2]
[339261228,1727417441651,-169.9404142,0.00019178,2]
[339261229,1727417441661,-589.2748333,0.00019178,2]
[339261230,1727417441671,-502.12015709,0.00019178,2]
[339261231,1727417441680,-509.33291434,0.00019178,2]
[339261232,1727417441689,-504.13947938,0.00019178,2]
[339261233,1727417441699,-500.0,0.00019178,2]
[339261234,1727417441708,-507.22033891,0.00019178,2]
[339261235,1727417441718,-500.0,0.00019178,2]
[339261236,1727417441727,-506.60099789,0.00019178,2]
[339261237,1727417441737,-505.8978561,0.00019178,2]
[339261238,1727417441746,-500.0,0.00019178,2]
[339261239,1727417441756,-500.0,0.00019178,2]
[339261240,1727417441766,-517.43819269,0.00019178,2]
[339261241,1727417441778,-603.61750877,0.00019178,2]
[339261242,1727417441788,-500.0,0.00019178,2]
[339261243,1727417441799,-500.0,0.00019178,2]
[339261244,1727417441809,-500.0,0.00019178,2]
[339261245,1727417441818,-500.0,0.00019178,2]
[339261246,1727417441827,-589.14910012,0.00019178,2]
[339261247,1727417441837,-500.0,0.00019178,2]
[339261248,1727417441846,-500.0,0.00019178,2]
[339261249,1727417441856,-500.0,0.00019178,2]
[339261250,1727417441866,-157.93431139,0.00019178,2]
[339261251,1727417441876,-515.77743723,0.00019178,2]
[339261252,1727417441885,-500.0,0.00019178,2]
[339261253,1727417441894,-506.2286542,0.00019178,2]
[339261254,1727417441903,-539.19395915,0.00019178,2]
[339261255,1727417441913,-505.69260725,0.00019178,2]
[339261256,1727417441923,-641.03463898,0.00019178,2]
[339261257,1727417441933,-500.0,0.00019178,2]
[339261258,1727417441943,-500.0,0.00019178,2]
[339261259,1727417441952,-2096.99,0.00019178,2]
[339261260,1727417441962,-500.0,0.00019178,2]
[339261261,1727417441971,-504.39762484,0.00019178,2]
[339261262,1727417441980,-500.0,0.00019178,2]
[339261263,1727417441990,-500.0,0.00019178,2]
[339261264,1727417441999,-500.0,0.00019178,2]
[339261265,1727417442009,-500.0,0.00019178,2]
[339261266,1727417442018,-500.0,0.00019178,2]
[339261267,1727417442028,-500.0,0.00019178,2]
[339261268,1727417442038,-500.0,0.00019178,2]
[339261269,1727417442047,-464.26494316,0.00019178,2]
[339261270,1727417442056,-508.20465973,0.00019178,2]
[339261271,1727417442066,-500.0,0.00019178,2]
[339261272,1727417442076,-500.0,0.00019178,2]
[339261273,1727417442086,-500.0,0.00019178,2]
[339261274,1727417442095,-500.0,0.00019178,2]
[339261275,1727417442105,-500.0,0.00019178,2]
[339261276,1727417442114,-500.0,0.00019178,2]
[339261277,1727417442123,-484.81701463,0.00019178,2]
[339261278,1727417442132,-500.0,0.00019178,2]
[339261279,1727417442142,-506.86488071,0.00019178,2]
[339261280,1727417442151,-500.0,0.00019178,2]
[339261281,1727417442161,-352.01920471,0.00019178,2]
[339261282,1727417442170,-500.0,0.00019178,2]
[339261283,1727417442179,-501.83280177,0.00019178,2]
[339261284,1727417442189,-640.18445733,0.00019178,2]
[339261285,1727417442198,-509.34441419,0.00019178,2]
[339261286,1727417442207,-508.70404606,0.00019178,2]
[339261287,1727417442216,-500.0,0.00019178,2]
[339261288,1727417442226,-525.59760991,0.00019178,2]
[339261289,1727417442236,-532.7567702,0.00019178,2]
[339261290,1727417442245,-505.39575549,0.00019178,2]
[339261291,1727417442255,-500.0,0.00019178,2]
[339261292,1727417442264,-577.8,0.00019178,2]
[339261293,1727417442274,-500.0,0.00019178,2]
[339261294,1727417442283,-500.0,0.00019178,2]
[339261295,1727417442293,-500.0,0.00019178,2]
[339261296,1727417442302,-503.82682857,0.00019178,2]
[339261297,1727417442311,-500.0,0.00019178,2]
[339261298,1727417442321,-500.0,0.00019178,2]
[339261299,1727417442332,-600.38907819,0.00019178,2]
[339261300,1727417442343,-500.0,0.00019178,2]
[339261301,1727417442354,-500.0,0.00019178,2]
[339261302,1727417442364,-505.33591757,0.00019178,2]
[339261303,1727417442374,-500.0,0.00019178,2]
[339261304,1727417442384,-500.0,0.00019178,2]
[339261305,1727417442500,-500.0,0.00019178,2]
[339261306,1727417442511,-500.0,0.00019178,2]
[339261307,1727417442520,-500.0,0.00019178,2]
[339261308,1727417442530,-500.0,0.00019178,2]
[339261309,1727417442542,-746.72,0.00019178,2]
[339261310,1727417442552,-500.0,0.00019178,2]
[339261311,1727417442564,-500.0,0.00019178,2]
[339261312,1727417442574,-500.0,0.00019178,2]
[339261313,1727417442584,-500.0,0.00019178,2]
[339261314,1727417442594,-500.0,0.00019178,2]
[339261315,1727417442605,-537.57514377,0.00019178,2]
[339261316,1727417442615,-500.0,0.00019178,2]
[339261317,1727417442625,-500.0,0.00019178,2]
[339261318,1727417442635,-500.0,0.00019178,2]
[339261319,1727417442645,-500.0,0.00019178,2]
[339261320,1727417442655,-525.11117407,0.00019178,2]
[339261321,1727417442665,-5000.0,0.00019178,2]
[339261322,1727417442674,-496.31801106,0.00019178,2]
[339261323,1727417442684,-543.31043458,0.00019178,2]
[339261324,1727417442693,-500.0,0.00019178,2]
[339261325,1727417442703,-509.91996726,0.00019178,2]
[339261326,1727417442713,-500.0,0.00019178,2]
[339261327,1727417442723,-500.0,0.00019178,2]
[339261328,1727417442733,-500.0,0.00019178,2]
[339261329,1727417442743,-500.0,0.00019178,2]
[339261330,1727417442753,-500.0,0.00019178,2]
[339261331,1727417442764,-552.67060331,0.00019178,2]
[339261332,1727417442774,-177.86813188,0.00019178,2]
[339261333,1727417442784,-500.0,0.00019178,2]
[339261334,1727417442794,-500.0,0.00019178,2]
[339261335,1727417442803,-500.0,0.00019178,2]
[339261336,1727417442813,-500.0,0.00019178,2]
[339261337,1727417442822,-500.0,0.00019178,2]
[339261338,1727417442832,-225.66907128,0.00019178,2]
[339261339,1727417442842,-500.0,0.00019178,2]
[339261340,1727417442852,-177.79641467,0.00019178,2]
[339261341,1727417442862,-500.0,0.00019178,2]
[339261342,1727417442872,-256.72957192,0.00019178,2]
[339261343,1727417442882,-500.0,0.00019178,2]
[339261344,1727417442891,-505.58776362,0.00019178,2]
[339261345,1727417442901,-640.84628451,0.00019178,2]
[339261346,1727417442911,-500.0,0.00019178,2]
[339261347,1727417442920,-508.17203683,0.00019178,2]
[339261349,1727417442930,-500.0,0.00019178,2]
[339261351,1727417442940,-500.0,0.00019178,2]
[339261353,1727417442949,-500.0,0.00019178,2]
[339261354,1727417442958,-510.55708519,0.00019178,2]
[339261355,1727417442968,-19218.49,0.00019178,2]
[339261356,1727417442978,-164.992837,0.00019178,2]
[339261358,1727417442989,-1026.5451759,0.00019178,2]
[339261359,1727417442998,-445.4218728,0.00019178,4]
[339261360,1727417443008,-269.27084864,0.00019205,2]
[339261361,1727417443018,-269.27084864,0.00019273,2]
[339261362,1727417443028,-153.0,0.000193,2]
[339261363,1727417443037,-183.6746109,0.000193,2]
[339261364,1727417443047,-164.081984,0.000193,2]
[339261365,1727417443056,-269.27084864,0.00019341,2]
[339261367,1727417443066,-3449.7612756,0.00019352,2]
[339261368,1727417443075,-5410.71254296,0.00019352,2]
[339261369,1727417443085,-3699.0,0.000194,2]
[339261370,1727417443095,-35225.4155934,0.00019431,3]
[339261371,1727417443104,-669.57598092,0.00019431,3]
[339261372,1727417443114,-151.0,0.00019431,2]
[339261373,1727417443124,-652.07533208,0.00019432,2]
[339261374,1727417443134,-366.67751789,0.00019432,2]
[339261375,1727417443143,-20782.62870972,0.00019441,3]
[339261376,1727417443216,-500.0,0.00019178,2]
[339261377,1727417443226,-500.0,0.00019178,2]
[339261378,1727417443235,-14442.78688368,0.00019441,3]
[339261379,1727417443245,-669.57598092,0.00019441,3]
[339261380,1727417443256,-151.0,0.00019442,2]
[339261381,1727417443267,-151.0,0.00019442,2]
[339261382,1727417443276,-151.0,0.00019442,2]
[339261383,1727417443286,-151.0,0.00019442,2]
[339261384,1727417443296,-70450.8311868,0.00019442,3]
[339261385,1727417443306,-1339.15196184,0.00019442,3]
[339261386,1727417443316,-2000.0,0.00019451,2]
[339261387,1727417443326,-2000.0,0.00019451,2]
[339261388,1727417443335,-2000.0,0.00019451,2]
[339261389,1727417443345,-2000.0,0.00019451,2]
[339261390,1727417443355,-2000.0,0.00019451,2]
[339261391,1727417443364,-2000.0,0.00019451,2]
[339261392,1727417443374,-2000.0,0.00019451,2]
[339261393,1727417443387,-2000.0,0.00019451,2]
[339261394,1727417443397,-2000.0,0.00019451,2]
[339261395,1727417443407,-2000.0,0.00019451,2]
[339261396,1727417443417,-511.67284037,0.00019452,2]
[339261397,1727417443426,-595.25,0.00019452,2]
[339261398,1727417443436,-1131.86,0.00019452,2]
[339261399,1727417443446,-500.0,0.00019452,2]
[339261400,1727417443456,-1310.03,0.00019452,2]
[339261401,1727417443466,-500.0,0.00019452,2]
[339261402,1727417443475,-584.7,0.00019452,2]
[339261403,1727417443487,-414.00244945,0.00019452,2]
[339261404,1727417443497,-1062.28,0.00019452,2]
[339261405,1727417443507,-500.0,0.00019452,2]
[339261406,1727417443516,-500.0,0.00019452,2]
[339261407,1727417443527,-501.94748668,0.00019452,2]
[339261408,1727417443537,-500.0,0.00019452,2]
[339261409,1727417443546,-500.0,0.00019452,2]
[339261410,1727417443556,-500.0,0.00019452,2]
[339261411,1727417443567,-510.47063791,0.00019452,2]
[339261412,1727417443577,-1000.0,0.00019452,2]
[339261413,1727417443588,-500.0,0.00019452,2]
[339261414,1727417443597,-500.0,0.00019452,2]
[339261415,1727417443607,-500.0,0.00019452,2]
[339261416,1727417443617,-500.0,0.00019452,2]
[339261417,1727417443627,-2131.71,0.00019452,2]
[339261418,1727417443637,-500.0,0.00019452,2]
[339261419,1727417443646,-504.0,0.00019452,2]
[339261420,1727417443656,-509.06102621,0.00019452,2]
[339261421,1727417443665,-368.64450648,0.00019452,2]
[339261422,1727417443674,-500.0,0.00019452,2]
[339261423,1727417443684,-500.0,0.00019452,2]
[339261424,1727417443693,-500.0,0.00019452,2]
[339261425,1727417443703,-500.0,0.00019452,2]
[339261426,1727417443712,-204.64,0.00019452,2]
[339261427,1727417443722,-508.5614065,0.00019452,2]
[339261428,1727417443731,-165.55820456,0.00019452,2]
[339261429,1727417443741,-512.37,0.00019452,2]
[339261430,1727417443751,-1724.24,0.00019452,2]
[339261431,1727417443761,-500.0,0.00019452,2]
[339261432,1727417443770,-500.0,0.00019452,2]
[339261433,1727417443780,-358.48525124,0.00019452,2]
[339261434,1727417443789,-504.86259437,0.00019452,2]
[339261435,1727417443799,-151.0,0.00019452,2]
[339261436,1727417443808,-151.0,0.00019452,2]
[339261437,1727417443819,-151.0,0.00019452,2]
[339261438,1727417443829,-152.700829,0.00019452,2]
[339261439,1727417443841,-506.959578,0.00019452,2]
[339261440,1727417443850,-500.0,0.00019452,2]
[339261441,1727417443860,-500.0,0.00019452,2]
[339261442,1727417443870,-506.959578,0.00019452,2]
[339261443,1727417443879,-3649.69,0.00019452,2]
[339261444,1727417443891,-151.0,0.00019452,2]
[339261445,1727417443900,-151.0,0.00019452,2]
[339261446,1727417443909,-151.0,0.00019452,2]
[339261447,1727417443918,-151.0,0.00019452,2]
[339261448,1727417443929,-519.92179312,0.00019452,2]
[339261449,1727417443938,-502.4963223,0.00019452,2]
[339261450,1727417443947,-206.345677,0.00019452,2]
[339261451,1727417443957,-413.7038129,0.00019452,2]
[339261452,1727417443966,-507.33275191,0.00019452,2]
[339261453,1727417443975,-206.345677,0.00019452,2]
[339261454,1727417443984,-187.016246,0.00019452,2]
[339261455,1727417443994,-187.016246,0.00019452,2]
[339261456,1727417444004,-166.654394,0.00019452,2]
[339261457,1727417444014,-500.0,0.00019452,2]
[339261458,1727417444024,-513.28998254,0.00019452,2]
[339261459,1727417444033,-166.654394,0.00019452,2]
[339261460,1727417444043,-157.87579031,0.00019452,2]
[339261461,1727417444053,-516.82072127,0.00019452,2]
[339261462,1727417444062,-618.77091909,0.00019452,2]
[339261463,1727417444071,-189.84,0.00019452,2]
[339261464,1727417444081,-510.55026176,0.00019452,2]
[339261465,1727417444091,-500.0,0.00019452,2]
[339261466,1727417444109,-506.75607573,0.00019452,2]
[339261467,1727417444118,-246.484232,0.00019452,2]
[339261468,1727417444129,-500.0,0.00019452,2]
[339261469,1727417444139,-246.484232,0.00019452,2]
[339261470,1727417444149,-151.0,0.00019452,2]
[339261471,1727417444159,-151.0,0.00019452,2]
[339261472,1727417444169,-151.0,0.00019452,2]
[339261473,1727417444178,-334.68402116,0.00019452,2]
[339261474,1727417444188,-151.0,0.00019452,2]
[339261475,1727417444198,-527.97721592,0.00019452,2]
[339261476,1727417444207,-2096.99,0.00019452,2]
[339261477,1727417444217,-500.0,0.00019452,2]
[339261478,1727417444226,-298.04290494,0.00019452,2]
[339261479,1727417444237,-156.37,0.00019452,2]
[339261480,1727417444248,-500.0,0.00019452,2]
[339261481,1727417444259,-380.63680735,0.00019452,2]
[339261482,1727417444269,-151.0,0.00019452,2]
[339261483,1727417444278,-500.0,0.00019452,2]
[339261484,1727417444288,-500.0,0.00019452,2]
[339261485,1727417444297,-520.55898909,0.00019452,2]
[339261486,1727417444306,-500.0,0.00019452,2]
[339261487,1727417444315,-464.6610779,0.00019452,2]
[339261488,1727417444324,-500.0,0.00019452,2]
[339261489,1727417444335,-151.0,0.00019452,2]
[339261490,1727417444346,-501.03131705,0.00019452,2]
[339261491,1727417444356,-613.62617819,0.00019452,2]
[339261492,1727417444366,-2000.0,0.00019452,2]
[339261493,1727417444375,-577.8,0.00019452,2]
[339261494,1727417444385,-2000.0,0.00019452,2]
[339261495,1727417444394,-2000.0,0.00019452,2]
[339261496,1727417444404,-500.0,0.00019452,2]
[339261497,1727417444413,-2039.328141,0.00019452,2]
[339261498,1727417444423,-500.0,0.00019452,2]
[339261499,1727417444432,-500.0,0.00019452,2]
[339261500,1727417444442,-500.0,0.00019452,2]
[339261501,1727417444452,-500.0,0.00019452,2]
[339261502,1727417444462,-553.05664782,0.00019452,2]
[339261503,1727417444471,-263.9944114,0.00019452,2]
[339261504,1727417444481,-553.41122372,0.00019452,2]
[339261505,1727417444492,-500.0,0.00019452,2]
[339261506,1727417444502,-746.72,0.00019452,2]
[339261507,1727417444511,-561.20569069,0.00019452,2]
[339261508,1727417444521,-566.83856903,0.00019452,2]
[339261509,1727417444531,-572.84954911,0.00019452,2]
[339261510,1727417444541,-159.39009977,0.00019452,2]
[339261511,1727417444551,-5000.0,0.00019452,2]
[339261512,1727417444561,-151.0,0.00019452,2]
[339261513,1727417444571,-500.0,0.00019452,2]
[339261514,1727417444581,-539.96476912,0.00019452,2]
[339261515,1727417444591,-598.29239378,0.00019452,2]
[339261516,1727417444601,-504.92250013,0.00019452,2]
[339261517,1727417444611,-500.0,0.00019452,2]
[339261518,1727417444620,-151.0,0.00019452,2]
[339261519,1727417444629,-500.0,0.00019452,2]
[339261520,1727417444639,-513.58334214,0.00019452,2]
[339261521,1727417444650,-490.85,0.00019452,2]
[339261522,1727417444660,-500.0,0.00019452,2]
[339261523,1727417444669,-500.0,0.00019452,2]
[339261524,1727417444679,-151.0,0.00019452,2]
[339261525,1727417444688,-500.0,0.00019452,2]
[339261526,1727417444697,-500.0,0.00019452,2]
[339261527,1727417444706,-500.0,0.00019452,2]
[339261528,1727417444715,-19218.49,0.00019452,2]
[339261529,1727417444726,-500.0,0.00019452,2]
[339261530,1727417444736,-500.0,0.00019473,2]
[339261531,1727417444745,-3000.0,0.00019542,2]
[339261532,1727417444754,-155.153879,0.000196,2]
[339261533,1727417444764,-526.0,0.00019617,2]
[339261534,1727417444774,-526.0,0.00019617,2]
[339261535,1727417444783,-526.0,0.00019617,2]
[339261536,1727417444792,-526.0,0.00019617,2]
[339261537,1727417444802,-526.0,0.00019617,2]
[339261538,1727417444811,-526.0,0.00019617,2]
[339261539,1727417444820,-526.0,0.00019617,2]
[339261540,1727417444828,-526.0,0.00019617,2]
[339261541,1727417444838,-526.0,0.00019617,2]
[339261542,1727417444849,-526.0,0.00019617,2]
[339261543,1727417444859,-526.0,0.00019617,2]
[339261544,1727417444868,-526.0,0.00019617,2]
[339261545,1727417444878,-526.0,0.00019617,2]
[339261546,1727417444887,-526.0,0.00019617,2]
[339261547,1727417444896,-153.0,0.00019617,2]
[339261548,1727417444906,-153.0,0.00019617,2]
[339261549,1727417444916,-153.0,0.00019617,2]
[339261550,1727417444925,-153.0,0.00019617,2]
[339261551,1727417444934,-669.57598092,0.00019617,3]
[339261552,1727417444944,-526.0,0.00019619,2]
[339261553,1727417444952,-526.0,0.00019619,2]
[339261554,1727417444962,-526.0,0.00019619,2]
[339261555,1727417444971,-526.0,0.00019619,2]
[339261556,1727417444980,-526.0,0.00019619,2]
[339261557,1727417444989,-526.0,0.00019619,2]
[339261558,1727417444999,-526.0,0.00019619,2]